bitfinex/quotes_BTCUSD_20240828
["timestamp","ask_amount","ask_price","bid_price","bid_amount"]
[1724815311685,0.0652,59633.0,59626.0,0.0078998]
[1724815311880,0.14027427,59633.0,59626.0,0.0078998]
[1724815312534,0.0773,59632.0,59626.0,0.0078998]
[1724815312887,0.05,59632.0,59626.0,0.0078998]
[1724815313142,0.0773,59631.0,59626.0,0.0008998]
[1724815313511,0.0773,59631.0,59626.0,0.0088998]
[1724815314051,0.0773,59631.0,59626.0,0.0008998]
[1724815314255,0.0783,59631.0,59626.0,0.0088998]
[1724815314796,0.01017284,59630.0,59626.0,0.0088998]
[1724815316917,0.01017284,59630.0,59626.0,0.0008998]
[1724815317201,0.01117284,59630.0,59626.0,0.0088998]
[1724815317337,0.01217284,59630.0,59626.0,0.0088998]
[1724815318361,0.0782,59629.0,59626.0,0.0088998]
[1724815318767,0.01005186,59628.0,59626.0,0.0088998]
[1724815319977,0.01005186,59628.0,59626.0,0.0008998]
[1724815320308,0.01005186,59628.0,59626.0,0.0058998]
[1724815320725,0.01005186,59628.0,59626.0,0.0008998]
[1724815321191,0.01005186,59628.0,59626.0,0.0078998]
[1724815321192,0.01105186,59628.0,59626.0,0.0078998]
[1724815321399,0.01205186,59628.0,59627.0,0.0602]
[1724815321608,0.01105186,59628.0,59627.0,0.0602]
[1724815321814,0.000818,59635.0,59628.0,0.0808]
[1724815322027,0.000818,59635.0,59628.0,0.09397596]
[1724815322228,0.01002981,59634.0,59629.0,0.0634]
[1724815322434,0.000818,59635.0,59629.0,0.0634]
[1724815323688,0.000818,59635.0,59629.0,0.0624]
[1724815323841,0.0806,59634.0,59627.0,0.007]
[1724815324041,0.0806,59634.0,59626.0,0.0008998]
[1724815324221,0.01002981,59633.0,59626.0,0.0008998]
[1724815324422,0.01002981,59633.0,59629.0,0.007]
[1724815324880,0.01002981,59633.0,59626.0,0.0008998]
[1724815325329,0.01002981,59633.0,59626.0,0.0078998]
[1724815326214,0.079,59632.0,59626.0,0.0078998]
[1724815326639,0.01012577,59631.0,59626.0,0.0008998]
[1724815326870,0.01012577,59631.0,59626.0,0.0078998]
[1724815327336,0.01012577,59631.0,59626.0,0.0008998]
[1724815327777,0.01012577,59631.0,59626.0,0.0088998]
[1724815328201,0.01112577,59631.0,59626.0,0.0008998]
[1724815328419,0.01212577,59631.0,59626.0,0.0098998]
[1724815328628,0.01112577,59631.0,59626.0,0.0098998]
[1724815328831,0.01212577,59631.0,59626.0,0.0098998]
[1724815329969,0.01112577,59631.0,59626.0,0.0008998]
[1724815330141,0.01112577,59631.0,59626.0,0.0088998]
[1724815331232,0.01112577,59631.0,59626.0,0.0008998]
[1724815331446,0.01012577,59631.0,59626.0,0.0008998]
[1724815331625,0.01012577,59631.0,59626.0,0.0078998]
[1724815331626,0.01112577,59631.0,59626.0,0.0078998]
[1724815332839,0.01012577,59631.0,59626.0,0.0008998]
[1724815333530,0.28061144,59627.0,59626.0,0.0038998]
[1724815333715,0.43131144,59627.0,59626.0,0.0038998]
[1724815333916,0.98011144,59620.0,59605.0,0.1418]
[1724815334124,0.98011144,59620.0,59601.0,0.00335555]
[1724815334125,0.09137197,59620.0,59601.0,0.00335555]
[1724815334332,0.01007197,59620.0,59614.0,0.0662]
[1724815334549,0.01007197,59620.0,59619.0,0.0800987]
[1724815334787,0.0813,59627.0,59619.0,0.0800987]
[1724815334788,0.0813,59627.0,59619.0,0.1462987]
[1724815334968,0.0843,59627.0,59619.0,0.1462987]
[1724815335174,0.00999975,59626.0,59619.0,0.0008987]
[1724815335814,0.05,59625.0,59619.0,0.0008987]
[1724815336468,0.001,59620.0,59619.0,0.0068987]
[1724815336830,0.001,59620.0,59619.0,0.0008987]
[1724815337047,0.01099975,59620.0,59619.0,0.0048987]
[1724815337236,0.001,59620.0,59619.0,0.0048987]
[1724815337449,0.00999975,59620.0,59619.0,0.0048987]
[1724815337659,0.05,59625.0,59619.0,0.0008987]
[1724815337913,0.001,59620.0,59619.0,0.0068987]
[1724815338131,0.01099975,59620.0,59619.0,0.0068987]
[1724815339115,0.15099975,59620.0,59619.0,0.0068987]
[1724815339365,0.14999975,59620.0,59619.0,0.0008987]
[1724815339585,0.15099975,59620.0,59619.0,0.0068987]
[1724815340014,0.15099975,59620.0,59619.0,0.0008987]
[1724815340467,0.15099975,59620.0,59619.0,0.0068987]
[1724815340714,0.15199975,59620.0,59619.0,0.0068987]
[1724815341139,0.01199975,59620.0,59619.0,0.0678987]
[1724815341356,0.002,59620.0,59619.0,0.0678987]
[1724815342178,0.002,59620.0,59619.0,0.0068987]
[1724815342425,0.0894297,59620.0,59619.0,0.0008987]
[1724815342636,0.0894297,59620.0,59619.0,0.0068987]
[1724815342637,0.0904297,59620.0,59619.0,0.0068987]
[1724815343063,0.0884297,59620.0,59619.0,0.0008987]
[1724815343277,0.0884297,59620.0,59619.0,0.0068987]
[1724815343498,0.0904297,59620.0,59619.0,0.0068987]
[1724815344586,0.1520297,59620.0,59619.0,0.0068987]
[1724815346147,0.0118297,59620.0,59619.0,0.0690987]
[1724815346385,0.002,59620.0,59619.0,0.0690987]
[1724815347017,0.002,59620.0,59619.0,0.1464987]
[1724815347237,0.002,59620.0,59619.0,0.14985338]
[1724815347474,0.002,59620.0,59619.0,0.1464987]
[1724815348377,0.000818,59635.0,59620.0,0.0753]
[1724815348530,0.000818,59635.0,59621.0,0.0665]
[1724815348759,0.000818,59635.0,59623.0,0.0753]
[1724815349568,0.000818,59635.0,59623.0,0.0743]
[1724815350229,0.0798,59634.0,59623.0,0.0743]
[1724815350630,0.0602,59633.0,59621.0,0.0665]
[1724815350869,0.0828,59632.0,59619.0,0.0008987]
[1724815351194,0.000818,59624.0,59619.0,0.0008987]
[1724815352089,0.000818,59624.0,59623.0,0.001]
[1724815352300,0.082618,59624.0,59623.0,0.001]
[1724815352552,0.082618,59624.0,59619.0,0.0008987]
[1724815352957,0.083618,59624.0,59619.0,0.0128987]
[1724815353420,0.082618,59624.0,59619.0,0.0008987]
[1724815353661,0.083618,59624.0,59623.0,0.013]
[1724815353899,0.083618,59624.0,59623.0,0.012]
[1724815354136,0.150418,59624.0,59623.0,0.012]
[1724815355078,0.148418,59624.0,59619.0,0.0008987]
[1724815355325,0.149418,59624.0,59619.0,0.0128987]
[1724815355538,0.150418,59624.0,59623.0,0.008]
[1724815356442,0.149418,59624.0,59623.0,0.008]
[1724815356669,0.150418,59624.0,59623.0,0.02]
[1724815357313,0.149418,59624.0,59623.0,0.012]
[1724815357755,0.150418,59624.0,59623.0,0.012]
[1724815358411,0.150418,59624.0,59623.0,0.019]
[1724815358412,0.151418,59624.0,59623.0,0.019]
[1724815359807,0.16141147,59624.0,59623.0,0.019]
[1724815363063,0.16141147,59624.0,59623.0,0.0198998]
[1724815366267,0.0832,59613.0,59600.0,0.0782]
[1724815366476,0.0832,59613.0,59599.0,0.50540786]
[1724815366477,0.0832,59605.0,59599.0,0.50540786]
[1724815366727,0.0832,59611.0,59600.0,0.04993743]
[1724815366945,0.00933719,59604.0,59601.0,0.07391243]
[1724815367157,0.00933719,59604.0,59600.0,0.19363743]
[1724815367412,0.0832,59611.0,59600.0,0.19363743]
[1724815368085,0.00933719,59610.0,59600.0,0.19963743]
[1724815368307,0.00933719,59610.0,59600.0,0.1497]
[1724815368500,0.00933719,59610.0,59600.0,0.1437]
[1724815368972,0.00933719,59610.0,59600.0,0.1487]
[1724815369428,0.00933719,59610.0,59600.0,0.1437]
[1724815369824,0.01033719,59610.0,59600.0,0.1497]
[1724815370498,0.01133719,59610.0,59600.0,0.1497]
[1724815371115,0.01133719,59610.0,59600.0,0.1655698]
[1724815371433,0.01133719,59610.0,59600.0,0.1497]
[1724815372773,0.01133719,59610.0,59601.0,0.1438]
[1724815372989,0.01133719,59610.0,59603.0,0.1386]
[1724815372990,0.002,59610.0,59603.0,0.1386]
[1724815373224,0.001,59610.0,59604.0,0.14195495]
[1724815373442,0.001,59610.0,59605.0,0.1386]
[1724815373719,0.002,59610.0,59606.0,0.06345498]
[1724815373936,0.001,59610.0,59607.0,0.0785]
[1724815374819,0.002,59610.0,59607.0,0.0785]
[1724815375079,0.001,59610.0,59608.0,0.0665]
[1724815375293,0.002,59610.0,59608.0,0.0665]
[1724815376152,0.000818,59619.0,59608.0,0.0665]
[1724815376364,0.001,59610.0,59608.0,0.081]
[1724815376595,0.000818,59619.0,59608.0,0.0665]
[1724815376997,0.001,59610.0,59608.0,0.0665]
[1724815377450,0.002,59610.0,59608.0,0.0735]
[1724815380297,0.002,59610.0,59609.0,0.0821]
[1724815380975,0.000818,59619.0,59609.0,0.0821]
[1724815381202,0.000818,59619.0,59610.0,0.01386]
[1724815381448,0.00741624,59618.0,59610.0,0.01286]
[1724815382100,0.00741624,59618.0,59611.0,0.00335463]
[1724815382536,0.000818,59619.0,59611.0,0.00335463]
[1724815382761,0.000818,59619.0,59612.0,0.01638146]
[1724815382975,0.00741624,59618.0,59612.0,0.01638146]
[1724815383199,0.00741624,59618.0,59612.0,0.01538146]
[1724815383386,0.000818,59619.0,59612.0,0.01538146]
[1724815383873,0.00741624,59618.0,59612.0,0.01538146]
[1724815384157,0.000818,59619.0,59612.0,0.01538146]
[1724815384396,0.000818,59619.0,59613.0,0.00984815]
[1724815384629,0.00741624,59618.0,59613.0,0.01320278]
[1724815384853,0.00741624,59618.0,59614.0,0.0646]
[1724815385074,0.000818,59619.0,59614.0,0.0646]
[1724815385540,0.00741624,59618.0,59614.0,0.0646]
[1724815385987,0.000818,59619.0,59614.0,0.0646]
[1724815386411,0.00741624,59618.0,59614.0,0.0646]
[1724815386858,0.000818,59619.0,59614.0,0.0646]
[1724815387080,0.000818,59619.0,59615.0,0.0809]
[1724815387291,0.00741624,59618.0,59615.0,0.0809]
[1724815387500,0.000818,59619.0,59615.0,0.0809]
[1724815387717,0.00741624,59617.0,59615.0,0.0809]
[1724815387923,0.000818,59619.0,59615.0,0.0809]
[1724815388372,0.00761416,59618.0,59615.0,0.07564561]
[1724815388569,0.00761416,59618.0,59615.0,0.07964561]
[1724815388928,0.00761416,59618.0,59615.0,0.07564561]
[1724815389127,0.00761416,59618.0,59615.0,0.07864561]
[1724815389532,0.00761416,59618.0,59616.0,0.01570938]
[1724815389906,0.00761416,59618.0,59615.0,0.08264561]
[1724815390280,0.00761416,59618.0,59615.0,0.07864561]
[1724815390617,0.00761416,59618.0,59615.0,0.008]
[1724815391096,0.00761416,59618.0,59615.0,0.005]
[1724815391307,0.079,59617.0,59615.0,0.005]
[1724815391513,0.079,59617.0,59615.0,0.009]
[1724815392194,0.00761416,59616.0,59615.0,0.009]
[1724815392377,0.00761416,59616.0,59615.0,0.005]
[1724815392606,0.00761416,59616.0,59615.0,0.01]
[1724815392812,0.000818,59619.0,59616.0,0.0634]
[1724815393127,0.001,59617.0,59616.0,0.0634]
[1724815393333,0.000818,59619.0,59616.0,0.0634]
[1724815393746,0.000818,59619.0,59616.0,0.0624]
[1724815393987,0.000818,59619.0,59617.0,0.016444]
[1724815394424,0.000818,59619.0,59617.0,0.015444]
[1724815394773,0.000818,59619.0,59617.0,0.014444]
[1724815395211,0.000818,59619.0,59616.0,0.0624]
[1724815395586,0.000818,59619.0,59617.0,0.003]
[1724815395986,0.000818,59619.0,59616.0,0.0624]
[1724815396196,0.000818,59619.0,59616.0,0.0664]
[1724815396418,0.000818,59619.0,59616.0,0.0624]
[1724815396829,0.000818,59619.0,59617.0,0.004]
[1724815397433,0.1441,59618.0,59617.0,0.004]
[1724815397649,0.1441,59618.0,59608.0,0.0775]
[1724815397650,0.0803,59618.0,59608.0,0.0775]
[1724815397868,0.0803,59618.0,59616.0,0.007]
[1724815398301,0.0803,59618.0,59616.0,0.004]
[1724815398717,0.0803,59618.0,59617.0,0.004]
[1724815399136,0.0803,59618.0,59616.0,0.004]
[1724815399395,0.081118,59618.0,59616.0,0.004]
[1724815400018,0.081118,59618.0,59610.0,0.0008998]
[1724815400227,0.081118,59618.0,59611.0,0.02520473]
[1724815400228,0.000818,59618.0,59611.0,0.02520473]
[1724815400426,0.000818,59618.0,59612.0,0.0613]
[1724815400625,0.00778869,59617.0,59616.0,0.004]
[1724815401030,0.00778869,59617.0,59613.0,0.0033546]
[1724815402292,0.00878869,59617.0,59616.0,0.006]
[1724815403320,0.00878869,59617.0,59616.0,0.08204546]
[1724815403522,0.00778869,59617.0,59616.0,0.07939965]
[1724815403750,0.0783,59617.0,59611.0,0.13227996]
[1724815403953,0.0793,59617.0,59616.0,0.005]
[1724815404171,0.0783,59617.0,59616.0,0.005]
[1724815404381,0.08606817,59617.0,59610.0,0.0008998]
[1724815404591,0.08706817,59617.0,59616.0,0.014]
[1724815404807,0.08806817,59617.0,59616.0,0.028]
[1724815405003,0.08706817,59617.0,59616.0,0.014]
[1724815405242,0.08706817,59617.0,59616.0,0.007]
[1724815405713,0.08806817,59617.0,59616.0,0.007]
[1724815406972,0.08706817,59617.0,59616.0,0.007]
[1724815407625,0.08706817,59617.0,59616.0,0.012]
[1724815411554,0.00876817,59617.0,59616.0,0.012]
[1724815411972,0.00855691,59617.0,59616.0,0.012]
[1724815412417,0.00855691,59617.0,59616.0,0.0128998]
[1724815417471,0.15175691,59617.0,59616.0,0.0128998]
[1724815419096,0.17806178,59617.0,59616.0,0.0128998]
[1724815420992,0.03486178,59617.0,59616.0,0.0128998]
[1724815421786,0.11696178,59617.0,59616.0,0.0128998]
[1724815423459,0.17846178,59617.0,59616.0,0.0128998]
[1724815425034,0.17927978,59617.0,59616.0,0.0128998]
[1724815435086,0.11777978,59617.0,59616.0,0.0128998]
[1724815443092,0.18147978,59617.0,59616.0,0.0128998]
[1724815458538,0.11777978,59617.0,59616.0,0.0128998]
[1724815459640,0.03567978,59617.0,59616.0,0.0128998]
[1724815460283,0.03567978,59617.0,59616.0,0.02194978]
[1724815461151,0.03567978,59617.0,59616.0,0.0128998]
[1724815461846,0.03567978,59617.0,59616.0,0.0945998]
[1724815462053,0.03567978,59617.0,59616.0,0.1587998]
[1724815462268,0.02812287,59617.0,59616.0,0.1587998]
[1724815462705,0.001818,59617.0,59616.0,0.24238919]
[1724815462939,0.001818,59617.0,59616.0,0.65457621]
[1724815463155,0.001818,59617.0,59616.0,0.61592621]
[1724815463366,0.001818,59617.0,59616.0,0.83454097]
[1724815463573,0.000818,59617.0,59616.0,0.38037387]
[1724815463784,0.000818,59617.0,59616.0,0.41423646]
[1724815463986,0.000818,59617.0,59616.0,0.43123646]
[1724815464193,0.000818,59617.0,59616.0,0.55867281]
[1724815464403,0.02711783,59617.0,59616.0,0.54837737]
[1724815464613,0.02711783,59617.0,59616.0,0.55337737]
[1724815465492,0.02711783,59617.0,59616.0,0.53937737]
[1724815465728,0.02711783,59617.0,59616.0,0.14150436]
[1724815466167,0.02711783,59617.0,59616.0,0.15550436]
[1724815466651,0.02711783,59617.0,59616.0,0.14150436]
[1724815466863,0.02711783,59617.0,59616.0,0.4708023]
[1724815467070,0.02711783,59617.0,59616.0,0.98282026]
[1724815467297,0.02711783,59617.0,59616.0,0.99673322]
[1724815467507,0.02711783,59617.0,59616.0,0.96872375]
[1724815467965,0.02811783,59617.0,59616.0,0.5496721]
[1724815468170,0.02811783,59617.0,59616.0,0.59947162]
[1724815468375,0.02811783,59617.0,59616.0,0.5356721]
[1724815469282,0.02811783,59617.0,59616.0,0.5496721]
[1724815469917,0.02711783,59617.0,59616.0,0.5356721]
[1724815470219,0.02711783,59617.0,59616.0,0.5365719]
[1724815470628,0.02711783,59617.0,59616.0,0.5505719]
[1724815470924,0.02711783,59617.0,59616.0,0.5365719]
[1724815471368,0.02711783,59617.0,59616.0,0.5505719]
[1724815471576,0.02711783,59617.0,59616.0,0.5365719]
[1724815471990,0.02711783,59617.0,59616.0,0.5415719]
[1724815472319,0.02711783,59617.0,59616.0,0.5555719]
[1724815473746,0.02711783,59617.0,59616.0,0.5415719]
[1724815474166,0.02711783,59617.0,59616.0,0.5555719]
[1724815475858,0.02711783,59617.0,59616.0,0.0288998]
[1724815476059,0.000818,59617.0,59616.0,0.0288998]
[1724815476773,0.000818,59617.0,59616.0,0.0008998]
[1724815476976,0.000818,59617.0,59616.0,0.0148998]
[1724815477332,0.000818,59617.0,59616.0,0.0288998]
[1724815477970,0.000818,59617.0,59616.0,0.04579978]
[1724815479343,0.000818,59617.0,59616.0,0.0288998]
[1724815479541,0.066418,59617.0,59616.0,0.0288998]
[1724815481106,0.066418,59617.0,59616.0,0.0148998]
[1724815481329,0.146418,59617.0,59616.0,0.0148998]
[1724815481540,0.146418,59617.0,59616.0,0.0288998]
[1724815482009,0.080818,59617.0,59616.0,0.0288998]
[1724815482716,0.080818,59617.0,59616.0,0.0148998]
[1724815482922,0.081818,59617.0,59616.0,0.0288998]
[1724815485111,0.145818,59617.0,59616.0,0.0288998]
[1724815485978,0.145818,59617.0,59616.0,0.0148998]
[1724815485979,0.144818,59617.0,59616.0,0.0148998]
[1724815486198,0.145818,59617.0,59616.0,0.0248998]
[1724815486831,0.144818,59617.0,59616.0,0.0148998]
[1724815487043,0.144818,59617.0,59616.0,0.0068998]
[1724815487249,0.144818,59617.0,59616.0,0.0138998]
[1724815487508,0.144818,59617.0,59616.0,0.0068998]
[1724815487953,0.144818,59617.0,59616.0,0.0178998]
[1724815488189,0.144818,59617.0,59616.0,0.0068998]
[1724815488412,0.144818,59617.0,59616.0,0.0078998]
[1724815488626,0.144818,59617.0,59616.0,0.0108998]
[1724815488627,0.145818,59617.0,59616.0,0.0108998]
[1724815489278,0.144818,59617.0,59616.0,0.0008998]
[1724815489477,0.145818,59617.0,59616.0,0.0078998]
[1724815490661,0.145818,59617.0,59616.0,0.0128998]
[1724815491102,0.145818,59617.0,59616.0,0.0078998]
[1724815491369,0.145818,59617.0,59616.0,0.0148998]
[1724815496156,0.145818,59617.0,59610.0,0.0008998]
[1724815496157,0.1381,59616.0,59610.0,0.0008998]
[1724815496365,0.0627,59616.0,59610.0,0.0008998]
[1724815496572,0.0754,59615.0,59610.0,0.0008998]
[1724815496775,0.0624,59614.0,59610.0,0.0008998]
[1724815497205,0.0764,59613.0,59610.0,0.0008998]
[1724815498086,0.0764,59613.0,59610.0,0.0088998]
[1724815498541,0.0774,59613.0,59610.0,0.0278998]
[1724815499218,0.0774,59613.0,59610.0,0.0198998]
[1724815499436,0.0784,59613.0,59610.0,0.0308998]
[1724815502663,0.02830592,59613.0,59610.0,0.0308998]
[1724815502913,0.0752,59612.0,59610.0,0.0308998]
[1724815503599,0.0601,59611.0,59610.0,0.0308998]
[1724815503806,0.1371,59611.0,59610.0,0.0008998]
[1724815505343,0.1371,59611.0,59610.0,0.0128998]
[1724815505776,0.1371,59611.0,59610.0,0.0008998]
[1724815505980,0.1371,59611.0,59610.0,0.0148998]
[1724815505981,0.1381,59611.0,59610.0,0.0148998]
[1724815506227,0.1391,59611.0,59610.0,0.0278998]
[1724815507966,0.1391,59611.0,59610.0,0.02729393]
[1724815528477,0.079,59611.0,59610.0,0.02729393]
[1724815529559,0.079818,59611.0,59610.0,0.02729393]
[1724815532586,0.07870572,59611.0,59610.0,0.02729393]
[1724815534638,0.07870572,59611.0,59610.0,0.20891605]
[1724815534639,0.002818,59611.0,59610.0,0.20891605]
[1724815534853,0.002818,59611.0,59610.0,0.12091554]
[1724815534992,0.002818,59611.0,59610.0,0.05631554]
[1724815535211,0.002818,59611.0,59610.0,0.02729393]
[1724815535452,0.082418,59611.0,59610.0,0.02729393]
[1724815537217,0.082418,59611.0,59610.0,0.01935042]
[1724815542763,0.082418,59611.0,59610.0,0.02025022]
[1724815553897,0.143518,59611.0,59610.0,0.02025022]
[1724815561199,0.26054012,59611.0,59610.0,0.02025022]
[1724815562069,0.25954012,59611.0,59610.0,0.00725022]
[1724815562501,0.26054012,59611.0,59610.0,0.01425022]
[1724815562959,0.25854012,59611.0,59610.0,0.0008998]
[1724815563371,0.26754012,59611.0,59610.0,0.0078998]
[1724815563607,0.26754012,59611.0,59610.0,0.0018998]
[1724815563811,0.32661011,59611.0,59610.0,0.0018998]
[1724815564036,0.27654012,59611.0,59610.0,0.0028998]
[1724815565293,0.159518,59611.0,59610.0,0.0028998]
[1724815565806,0.098418,59611.0,59610.0,0.0028998]
[1724815566372,0.080418,59611.0,59610.0,0.0008998]
[1724815566522,0.087418,59611.0,59610.0,0.0008998]
[1724815567120,0.007818,59611.0,59610.0,0.0008998]
[1724815569632,0.007818,59611.0,59610.0,0.0847798]
[1724815570488,0.007818,59611.0,59610.0,0.02119435]
[1724815572475,0.152118,59611.0,59610.0,0.02119435]
[1724815573999,0.152118,59611.0,59603.0,0.11702212]
[1724815574421,0.152118,59611.0,59603.0,0.13500431]
[1724815574842,0.152118,59611.0,59603.0,0.11702212]
[1724815575281,0.149118,59611.0,59603.0,0.11702212]
[1724815575976,0.152118,59611.0,59603.0,0.11702212]
[1724815576199,0.148118,59611.0,59603.0,0.11702212]
[1724815576646,0.152118,59611.0,59603.0,0.11702212]
[1724815578177,0.152118,59611.0,59610.0,0.0008998]
[1724815579276,0.149118,59611.0,59610.0,0.0008998]
[1724815579479,0.148118,59611.0,59610.0,0.0008998]
[1724815579708,0.152118,59611.0,59610.0,0.0008998]
[1724815580369,0.28698251,59611.0,59610.0,0.0008998]
[1724815580803,0.38759889,59611.0,59610.0,0.0008998]
[1724815582793,0.3697565,59611.0,59610.0,0.0008998]
[1724815584566,0.26914012,59611.0,59610.0,0.0008998]
[1724815586784,0.36974939,59611.0,59610.0,0.0008998]
[1724815587007,0.36974713,59611.0,59610.0,0.0008998]
[1724815587234,0.26914012,59611.0,59610.0,0.0008998]
[1724815587472,0.3949017,59611.0,59610.0,0.0008998]
[1724815587893,0.16914012,59611.0,59610.0,0.0008998]
[1724815588975,0.26914012,59611.0,59610.0,0.0008998]
[1724815590836,0.35104012,59611.0,59610.0,0.0008998]
[1724815591048,0.35185812,59611.0,59610.0,0.0008998]
[1724815592808,0.85185812,59611.0,59610.0,0.0008998]
[1724815593248,0.95246083,59611.0,59610.0,0.0008998]
[1724815593468,0.95746083,59611.0,59610.0,0.0008998]
[1724815594339,1.11947481,59611.0,59610.0,0.0008998]
[1724815594548,1.0188721,59611.0,59610.0,0.0008998]
[1724815595434,0.87985812,59611.0,59610.0,0.0008998]
[1724815597430,1.0056197,59611.0,59610.0,0.0008998]
[1724815597636,0.87985812,59611.0,59610.0,0.0008998]
[1724815597840,1.03077202,59611.0,59610.0,0.0008998]
[1724815598040,0.87985812,59611.0,59610.0,0.0008998]
[1724815598462,1.03078725,59611.0,59610.0,0.0008998]
[1724815599858,1.03078076,59611.0,59610.0,0.0008998]
[1724815600059,1.16567792,59611.0,59610.0,0.0008998]
[1724815600641,1.01475528,59611.0,59610.0,0.0008998]
[1724815601272,0.87985812,59611.0,59610.0,0.0008998]
[1724815604621,1.03074001,59611.0,59610.0,0.0008998]
[1724815605798,0.87985812,59611.0,59610.0,0.0008998]
[1724815606818,1.03073753,59611.0,59610.0,0.0008998]
[1724815607012,0.87985812,59611.0,59610.0,0.0008998]
[1724815607255,1.01475096,59611.0,59610.0,0.0008998]
[1724815607577,0.87985812,59611.0,59610.0,0.0008998]
[1724815608193,0.90199812,59611.0,59610.0,0.0008998]
[1724815608394,1.05287753,59611.0,59610.0,0.0008998]
[1724815608596,0.90199812,59611.0,59610.0,0.0008998]
[1724815609568,1.05286364,59611.0,59610.0,0.0008998]
[1724815611428,0.90199812,59611.0,59610.0,0.0008998]
[1724815611669,1.05286364,59611.0,59610.0,0.0008998]
[1724815611838,0.90199812,59611.0,59610.0,0.0008998]
[1724815614336,1.05286364,59611.0,59610.0,0.0008998]
[1724815614762,1.05288021,59611.0,59610.0,0.0008998]
[1724815615556,0.90199812,59611.0,59610.0,0.0008998]
[1724815617510,1.04096241,59611.0,59610.0,0.0008998]
[1724815618194,0.89999812,59611.0,59610.0,0.0008998]
[1724815618658,0.90292184,59611.0,59610.0,0.0008998]
[1724815619088,0.89999812,59611.0,59610.0,0.0008998]
[1724815619597,1.05097955,59611.0,59610.0,0.0008998]
[1724815619829,1.05097578,59611.0,59610.0,0.0008998]
[1724815620255,0.89999812,59611.0,59610.0,0.0008998]
[1724815620868,1.05099466,59611.0,59610.0,0.0008998]
[1724815621314,0.89999812,59611.0,59610.0,0.0008998]
[1724815622193,0.782976,59611.0,59610.0,0.0008998]
[1724815622407,0.89999812,59611.0,59610.0,0.0008998]
[1724815625921,0.87598188,59611.0,59610.0,0.0008998]
[1724815626129,0.75895976,59611.0,59610.0,0.0008998]
[1724815626373,0.607818,59611.0,59610.0,0.0008998]
[1724815627283,0.90315976,59611.0,59610.0,0.0008998]
[1724815627488,0.686218,59611.0,59610.0,0.0008998]
[1724815627701,0.83735976,59611.0,59610.0,0.0008998]
[1724815628110,0.686218,59611.0,59610.0,0.0008998]
[1724815629713,0.691218,59611.0,59610.0,0.0008998]
[1724815629934,0.94930399,59611.0,59610.0,0.0008998]
[1724815630131,0.779218,59611.0,59610.0,0.0008998]
[1724815630991,0.89624012,59611.0,59610.0,0.0008998]
[1724815631596,0.779218,59611.0,59610.0,0.0008998]
[1724815631848,1.00135636,59611.0,59610.0,0.0008998]
[1724815632055,0.83124012,59611.0,59610.0,0.0008998]
[1724815634488,0.75284012,59611.0,59610.0,0.1407998]
[1724815634693,0.75284012,59611.0,59610.0,0.0008998]
[1724815635310,0.77039685,59611.0,59610.0,0.0008998]
[1724815636609,0.74739685,59611.0,59610.0,0.0008998]
[1724815639726,0.91755673,59611.0,59610.0,0.0008998]
[1724815642933,0.91757078,59611.0,59610.0,0.0008998]
[1724815643140,0.74739685,59611.0,59610.0,0.0008998]
[1724815643912,0.74239685,59611.0,59610.0,0.0008998]
[1724815644507,0.74739685,59611.0,59610.0,0.0008998]
[1724815647149,0.74239685,59611.0,59610.0,0.0008998]
[1724815647532,0.74739685,59611.0,59610.0,0.0008998]
[1724815652317,1.05516177,59611.0,59610.0,0.0008998]
[1724815652906,1.0551837,59611.0,59610.0,0.0008998]
[1724815653817,0.9931837,59611.0,59610.0,0.0008998]
[1724815658481,0.9881837,59611.0,59610.0,0.0008998]
[1724815658681,0.9125837,59611.0,59610.0,0.0008998]
[1724815659059,0.9175837,59611.0,59610.0,0.0008998]
[1724815659266,0.33061144,59606.0,59604.0,0.13025435]
[1724815659963,0.35692427,59606.0,59604.0,0.13025435]
[1724815660584,0.35692427,59606.0,59604.0,0.13325435]
[1724815661016,0.35692427,59606.0,59604.0,0.13525435]
[1724815661772,0.35692427,59606.0,59604.0,0.13025435]
[1724815662293,0.36292427,59606.0,59604.0,0.13125435]
[1724815662433,0.35692427,59606.0,59604.0,0.13025435]
[1724815663069,0.35692427,59606.0,59604.0,0.14558375]
[1724815663301,0.35692427,59606.0,59605.0,0.1448]
[1724815663302,0.15739664,59606.0,59605.0,0.1448]
[1724815663512,0.13216756,59606.0,59605.0,0.1448]
[1724815663678,0.02631283,59606.0,59605.0,0.1448]
[1724815664085,0.03131283,59606.0,59605.0,0.1448]
[1724815664287,0.11293946,59606.0,59605.0,0.1448]
[1724815664545,0.10793946,59606.0,59605.0,0.1448]
[1724815664758,0.10193946,59606.0,59605.0,0.1448]
[1724815664887,0.10693946,59606.0,59605.0,0.1448]
[1724815666163,0.22396158,59606.0,59605.0,0.1448]
[1724815666363,0.14633495,59606.0,59605.0,0.1448]
[1724815666590,0.02931283,59606.0,59605.0,0.1448]
[1724815666803,0.02631283,59606.0,59605.0,0.1448]
[1724815667218,0.02631283,59606.0,59605.0,0.16158396]
[1724815667611,0.10192836,59606.0,59605.0,0.16158396]
[1724815667844,0.10792836,59606.0,59605.0,0.16258396]
[1724815668047,0.02831283,59606.0,59605.0,0.1448]
[1724815668253,0.12914302,59606.0,59605.0,0.1448]
[1724815668466,0.12914302,59606.0,59604.0,0.0008998]
[1724815668467,0.38966514,59606.0,59604.0,0.0008998]
[1724815668676,0.28883495,59606.0,59604.0,0.0008998]
[1724815668885,0.29383495,59606.0,59604.0,0.0008998]
[1724815669094,0.15033495,59606.0,59604.0,0.0008998]
[1724815669295,0.14833495,59606.0,59604.0,0.0008998]
[1724815669643,0.14833495,59606.0,59605.0,0.003]
[1724815670027,0.14333495,59606.0,59604.0,0.0008998]
[1724815670431,0.14833495,59606.0,59604.0,0.0008998]
[1724815670831,0.14533495,59606.0,59604.0,0.0008998]
[1724815671057,0.14833495,59606.0,59604.0,0.0008998]
[1724815671284,0.15233495,59606.0,59604.0,0.0008998]
[1724815671442,0.14733495,59606.0,59604.0,0.0008998]
[1724815671645,0.15033495,59606.0,59604.0,0.0008998]
[1724815672546,0.14633495,59606.0,59604.0,0.0008998]
[1724815673201,0.14333495,59606.0,59604.0,0.0008998]
[1724815673407,0.15033495,59606.0,59604.0,0.0008998]
[1724815673614,0.30162959,59606.0,59604.0,0.0008998]
[1724815673818,0.29962959,59606.0,59604.0,0.0008998]
[1724815674235,0.29862959,59606.0,59604.0,0.0008998]
[1724815674672,0.30462959,59606.0,59604.0,0.0018998]